[Event "Live Chess"]
[Site "Chess.com"]
[Date "2023.05.20"]
[Round "-"]
[White "JohanKjeldahl"]
[Black "Leonid_Starozhilov"]
[Result "0-1"]
[WhiteElo "1844"]
[BlackElo "2642"]
[TimeControl "300"]
[EndTime "13:32:09 PDT"]
[Termination "Leonid_Starozhilov won by resignation"]

1. c4 {[%clk 0:04:56.4]} 1... Nf6 {[%clk 0:04:57]} 2. Nc3 {[%clk 0:04:54.8]}
2... g6 {[%clk 0:04:56.1]} 3. d4 {[%clk 0:04:53.5]} 3... Bg7 {[%clk 0:04:54.9]}
4. Nf3 {[%clk 0:04:51.4]} 4... O-O {[%clk 0:04:54.8]} 5. g3 {[%clk 0:04:50.5]}
5... d6 {[%clk 0:04:54.7]} 6. Bg2 {[%clk 0:04:49.6]} 6... c6 {[%clk 0:04:54.5]}
7. O-O {[%clk 0:04:48.5]} 7... Bf5 {[%clk 0:04:52.8]} 8. b3 {[%clk 0:04:44.5]}
8... Ne4 {[%clk 0:04:51.1]} 9. Bb2 {[%clk 0:04:42.8]} 9... Nxc3 {[%clk
0:04:50.6]} 10. Bxc3 {[%clk 0:04:41.4]} 10... Be4 {[%clk 0:04:50.5]} 11. Qd2
{[%clk 0:04:36.7]} 11... Nd7 {[%clk 0:04:49.1]} 12. Rad1 {[%clk 0:04:34.4]}
12... e6 {[%clk 0:04:47.4]} 13. Ne1 {[%clk 0:04:28.5]} 13... Bxg2 {[%clk
0:04:45.7]} 14. Nxg2 {[%clk 0:04:27.5]} 14... d5 {[%clk 0:04:45.6]} 15. e3
{[%clk 0:04:21.9]} 15... Nf6 {[%clk 0:04:36]} 16. f3 {[%clk 0:04:17.3]} 16...
Rc8 {[%clk 0:04:15.8]} 17. Nf4 {[%clk 0:04:13.9]} 17... Re8 {[%clk 0:04:10.2]}
18. Nd3 {[%clk 0:04:11.2]} 18... b6 {[%clk 0:04:08.6]} 19. Ne5 {[%clk
0:04:09.2]} 19... c5 {[%clk 0:04:05.1]} 20. dxc5 {[%clk 0:04:05.5]} 20... bxc5
{[%clk 0:03:59.3]} 21. Ba5 {[%clk 0:03:55.7]} 21... Qd6 {[%clk 0:03:56.4]} 22.
f4 {[%clk 0:03:27.7]} 22... Ne4 {[%clk 0:03:53.5]} 23. Qc2 {[%clk 0:03:25.8]}
23... Bxe5 {[%clk 0:03:47.2]} 24. fxe5 {[%clk 0:03:24.8]} 24... Qxe5 {[%clk
0:03:47.1]} 25. cxd5 {[%clk 0:03:22.6]} 25... exd5 {[%clk 0:03:47]} 26. Qd3
{[%clk 0:03:13.2]} 26... d4 {[%clk 0:03:33.5]} 27. exd4 {[%clk 0:03:10.8]} 27...
cxd4 {[%clk 0:03:33.4]} 28. Qxd4 {[%clk 0:03:06.7]} 28... Qxa5 {[%clk
0:03:31.4]} 29. Rde1 {[%clk 0:02:58]} 29... Qb6 {[%clk 0:03:29.3]} 0-1

[Event "Live Chess"]
[Site "Chess.com"]
[Date "2023.05.20"]
[Round "-"]
[White "HoarseyHorsey"]
[Black "gmnorfolk"]
[Result "0-1"]
[WhiteElo "1404"]
[BlackElo "2083"]
[TimeControl "300"]
[EndTime "13:32:17 PDT"]
[Termination "gmnorfolk won by resignation"]

1. d4 {[%clk 0:04:57.9]} 1... Nf6 {[%clk 0:04:58.7]} 2. c4 {[%clk 0:04:56.9]}
2... e6 {[%clk 0:04:57.6]} 3. Nc3 {[%clk 0:04:55.7]} 3... Bb4 {[%clk 0:04:57.2]}
4. e3 {[%clk 0:04:54.4]} 4... O-O {[%clk 0:04:55.9]} 5. Bd2 {[%clk 0:04:44.8]}
5... d5 {[%clk 0:04:54.1]} 6. Nf3 {[%clk 0:04:40.4]} 6... b6 {[%clk 0:04:52.2]}
7. a3 {[%clk 0:04:38.6]} 7... Be7 {[%clk 0:04:47.2]} 8. cxd5 {[%clk 0:04:37.7]}
8... Nxd5 {[%clk 0:04:45.4]} 9. Nxd5 {[%clk 0:04:31.2]} 9... Qxd5 {[%clk
0:04:40.6]} 10. Qc2 {[%clk 0:04:29.4]} 10... c5 {[%clk 0:04:37]} 11. Bc4 {[%clk
0:04:25.4]} 11... Qd8 {[%clk 0:04:34.2]} 12. O-O {[%clk 0:04:20.5]} 12... cxd4
{[%clk 0:04:32.6]} 13. Nxd4 {[%clk 0:04:18.6]} 13... Bb7 {[%clk 0:04:31.6]} 14.
Bd3 {[%clk 0:04:12.6]} 14... h6 {[%clk 0:04:28.1]} 15. Be4 {[%clk 0:04:10.8]}
15... Bd5 {[%clk 0:04:21.1]} 16. Bxd5 {[%clk 0:04:09.1]} 16... Qxd5 {[%clk
0:04:18.5]} 17. Rfd1 {[%clk 0:04:05.4]} 17... Na6 {[%clk 0:04:13.3]} 18. Bc3
{[%clk 0:04:03.1]} 18... Nc5 {[%clk 0:04:09.9]} 19. Nf3 {[%clk 0:04:01.7]} 19...
Qb3 {[%clk 0:04:07.4]} 20. Qxb3 {[%clk 0:03:53.2]} 20... Nxb3 {[%clk 0:04:07.3]}
21. Rd7 {[%clk 0:03:52]} 21... Nxa1 {[%clk 0:04:02.7]} 22. Rxe7 {[%clk
0:03:51.1]} 22... Nb3 {[%clk 0:04:01.4]} 23. Ne5 {[%clk 0:03:48.7]} 23... a5
{[%clk 0:03:43.4]} 24. h4 {[%clk 0:03:39.1]} 24... Nc5 {[%clk 0:03:35.8]} 25. f3
{[%clk 0:03:32.3]} 25... Rfe8 {[%clk 0:03:30.3]} 26. Rxf7 {[%clk 0:03:28.9]}
26... Na4 {[%clk 0:03:16.4]} 27. Bd4 {[%clk 0:03:25.3]} 27... Rad8 {[%clk
0:03:13.4]} 28. Nd7 {[%clk 0:03:16.2]} 28... Rxd7 {[%clk 0:03:06.7]} 29. Rxd7
{[%clk 0:03:15.2]} 29... e5 {[%clk 0:03:05.7]} 30. Bc3 {[%clk 0:03:11.9]} 30...
Nxc3 {[%clk 0:03:02.8]} 31. bxc3 {[%clk 0:03:11.8]} 31... Rc8 {[%clk 0:03:01.6]}
32. Rd3 {[%clk 0:03:09]} 32... Rc4 {[%clk 0:02:59.6]} 33. e4 {[%clk 0:03:05.9]}
33... Ra4 {[%clk 0:02:58.2]} 34. Kf2 {[%clk 0:02:56.1]} 34... Rxa3 {[%clk
0:02:57.2]} 35. Ke2 {[%clk 0:02:55.3]} 35... Ra2+ {[%clk 0:02:56.2]} 36. Kf1
{[%clk 0:02:53.8]} 36... a4 {[%clk 0:02:51.3]} 37. c4 {[%clk 0:02:53]} 37... Rc2
{[%clk 0:02:48.3]} 38. Ra3 {[%clk 0:02:46.4]} 38... Rxc4 {[%clk 0:02:46.1]} 39.
Ke2 {[%clk 0:02:45.8]} 39... b5 {[%clk 0:02:44.3]} 40. Kd3 {[%clk 0:02:44.1]}
40... Rb4 {[%clk 0:02:42.7]} 41. Kc2 {[%clk 0:02:37.3]} 41... Rc4+ {[%clk
0:02:36.3]} 42. Kd3 {[%clk 0:02:32.6]} 42... Rc8 {[%clk 0:02:34.8]} 43. Ra2
{[%clk 0:02:27.4]} 43... Kf7 {[%clk 0:02:32.8]} 44. Rb2 {[%clk 0:02:25.2]} 44...
Rb8 {[%clk 0:02:29.1]} 45. Kc3 {[%clk 0:02:23.7]} 45... a3 {[%clk 0:02:27.2]}
46. Ra2 {[%clk 0:02:21.1]} 46... b4+ {[%clk 0:02:25.8]} 47. Kb3 {[%clk
0:02:20.3]} 47... Ke6 {[%clk 0:02:20.2]} 48. Rd2 {[%clk 0:02:11]} 48... g5
{[%clk 0:02:12.7]} 49. h5 {[%clk 0:02:00.8]} 49... Rb6 {[%clk 0:02:07.7]} 50. g3
{[%clk 0:01:54.1]} 50... Kf6 {[%clk 0:01:59]} 51. Rd5 {[%clk 0:01:42.6]} 51...
Ra6 {[%clk 0:01:51.8]} 52. Kxb4 {[%clk 0:01:29.7]} 52... a2 {[%clk 0:01:49.3]}
0-1

[Event "Live Chess"]
[Site "Chess.com"]
[Date "2023.05.20"]
[Round "-"]
[White "Inglaterra"]
[Black "JanMur7"]
[Result "0-1"]
[WhiteElo "2051"]
[BlackElo "1981"]
[TimeControl "300"]
[EndTime "13:32:19 PDT"]
[Termination "JanMur7 won on time"]

1. Nf3 {[%clk 0:04:57.4]} 1... g6 {[%clk 0:04:57.6]} 2. g3 {[%clk 0:04:55.7]}
2... Bg7 {[%clk 0:04:57.5]} 3. Bg2 {[%clk 0:04:54.9]} 3... c5 {[%clk 0:04:50.4]}
4. O-O {[%clk 0:04:52.5]} 4... Nc6 {[%clk 0:04:49.3]} 5. c4 {[%clk 0:04:50.9]}
5... e6 {[%clk 0:04:47.3]} 6. Nc3 {[%clk 0:04:49.2]} 6... Nge7 {[%clk
0:04:38.3]} 7. e3 {[%clk 0:04:37.5]} 7... O-O {[%clk 0:04:35.1]} 8. d4 {[%clk
0:04:09.5]} 8... cxd4 {[%clk 0:04:31.3]} 9. exd4 {[%clk 0:04:06.1]} 9... d5
{[%clk 0:04:30.5]} 10. c5 {[%clk 0:03:59.5]} 10... b6 {[%clk 0:04:14.9]} 11.
cxb6 {[%clk 0:03:56]} 11... Qxb6 {[%clk 0:04:14]} 12. Na4 {[%clk 0:03:51.8]}
12... Qa5 {[%clk 0:04:07.5]} 13. Bd2 {[%clk 0:03:42.4]} 13... Qc7 {[%clk
0:04:04.5]} 14. Rc1 {[%clk 0:03:36.2]} 14... Ba6 {[%clk 0:04:00]} 15. Re1 {[%clk
0:03:32.4]} 15... Qd8 {[%clk 0:03:45.5]} 16. Nc5 {[%clk 0:03:27.3]} 16... Bc4
{[%clk 0:03:40.1]} 17. b3 {[%clk 0:03:22.8]} 17... Bb5 {[%clk 0:03:31.5]} 18.
Bf4 {[%clk 0:03:11.1]} 18... a5 {[%clk 0:03:09.9]} 19. Ne5 {[%clk 0:02:50.5]}
19... Nxe5 {[%clk 0:03:02]} 20. Bxe5 {[%clk 0:02:50.4]} 20... Nf5 {[%clk
0:02:34.1]} 21. Bxg7 {[%clk 0:02:40.1]} 21... Kxg7 {[%clk 0:02:34]} 22. Bh3
{[%clk 0:02:29.5]} 22... Qf6 {[%clk 0:02:28.5]} 23. Re5 {[%clk 0:02:14.8]} 23...
Nd6 {[%clk 0:02:19]} 24. a4 {[%clk 0:02:02.7]} 24... Be8 {[%clk 0:02:06.4]} 25.
Qe2 {[%clk 0:01:51.9]} 25... h5 {[%clk 0:01:52.1]} 26. Bxe6 {[%clk 0:01:44.3]}
26... fxe6 {[%clk 0:01:44.5]} 27. Nxe6+ {[%clk 0:01:42.8]} 27... Kg8 {[%clk
0:01:33.1]} 28. Nxf8 {[%clk 0:01:40.3]} 28... Qxf8 {[%clk 0:01:32.1]} 29. Rxd5
{[%clk 0:01:35.1]} 29... Bf7 {[%clk 0:01:25]} 30. Re5 {[%clk 0:01:27.8]} 30...
Bxb3 {[%clk 0:01:17.6]} 31. Rc7 {[%clk 0:01:17.9]} 31... Rc8 {[%clk 0:01:03.6]}
32. Rxc8 {[%clk 0:01:03.4]} 32... Qxc8 {[%clk 0:01:00.4]} 33. d5 {[%clk
0:00:51.4]} 33... Qc1+ {[%clk 0:00:39.9]} 34. Kg2 {[%clk 0:00:49.4]} 34... Bc4
{[%clk 0:00:38.2]} 35. Qe3 {[%clk 0:00:19.5]} 35... Bf1+ {[%clk 0:00:34.2]} 36.
Kf3 {[%clk 0:00:18]} 36... Qc4 {[%clk 0:00:30.9]} 37. h3 {[%clk 0:00:12.7]}
37... Bxh3 {[%clk 0:00:25.8]} 38. Qg5 {[%clk 0:00:10.9]} 38... Qd3+ {[%clk
0:00:15.6]} 39. Re3 {[%clk 0:00:10.5]} 39... Qd1+ {[%clk 0:00:13.9]} 40. Kf4
{[%clk 0:00:08.3]} 40... Qd4+ {[%clk 0:00:12.9]} 41. Kf3 {[%clk 0:00:06.6]}
41... Bg4+ {[%clk 0:00:11.4]} 42. Kg2 {[%clk 0:00:05.9]} 42... Qg7 {[%clk
0:00:09.7]} 43. Re6 {[%clk 0:00:04.2]} 43... Nf7 {[%clk 0:00:09.6]} 44. Rxg6
{[%clk 0:00:03.2]} 44... Kh7 {[%clk 0:00:09.5]} 45. Rxg7+ {[%clk 0:00:02.6]}
45... Kh8 {[%clk 0:00:08.9]} 46. Qg6 {[%clk 0:00:02.1]} 46... Bf3+ {[%clk
0:00:06.8]} 47. Kxf3 {[%clk 0:00:00.7]} 47... Ne5+ {[%clk 0:00:06.2]} 0-1

[Event "Live Chess"]
[Site "Chess.com"]
[Date "2023.05.20"]
[Round "-"]
[White "SupremeTactician"]
[Black "BillythekidFellowes"]
[Result "1-0"]
[WhiteElo "2369"]
[BlackElo "2037"]
[TimeControl "300"]
[EndTime "13:32:20 PDT"]
[Termination "SupremeTactician won by checkmate"]

1. e4 {[%clk 0:04:58.5]} 1... Nc6 {[%clk 0:04:58.8]} 2. d4 {[%clk 0:04:57.1]}
2... d5 {[%clk 0:04:57.3]} 3. e5 {[%clk 0:04:55.7]} 3... Bf5 {[%clk 0:04:56.4]}
4. c3 {[%clk 0:04:55.4]} 4... e6 {[%clk 0:04:55.6]} 5. Ne2 {[%clk 0:04:53.5]}
5... f6 {[%clk 0:04:55]} 6. Ng3 {[%clk 0:04:52.5]} 6... Bg6 {[%clk 0:04:54.5]}
7. Bd3 {[%clk 0:04:51.3]} 7... Bxd3 {[%clk 0:04:53.4]} 8. Qxd3 {[%clk
0:04:50.3]} 8... Be7 {[%clk 0:04:52.9]} 9. f4 {[%clk 0:04:48.7]} 9... Nh6 {[%clk
0:04:50.3]} 10. O-O {[%clk 0:04:47.3]} 10... O-O {[%clk 0:04:49.1]} 11. Nd2
{[%clk 0:04:27.3]} 11... Qd7 {[%clk 0:04:25.5]} 12. Nf3 {[%clk 0:04:20.2]} 12...
Nd8 {[%clk 0:04:20.1]} 13. Bd2 {[%clk 0:04:12.4]} 13... c5 {[%clk 0:04:18.6]}
14. Rae1 {[%clk 0:04:08.4]} 14... cxd4 {[%clk 0:04:16.3]} 15. cxd4 {[%clk
0:04:05.8]} 15... Nc6 {[%clk 0:04:14.8]} 16. exf6 {[%clk 0:03:56.2]} 16... Bxf6
{[%clk 0:04:12.7]} 17. Ne5 {[%clk 0:03:55.4]} 17... Bxe5 {[%clk 0:04:04.9]} 18.
fxe5 {[%clk 0:03:54.5]} 18... Nf7 {[%clk 0:04:00.1]} 19. Nh5 {[%clk 0:03:41.3]}
19... Nh8 {[%clk 0:03:56.8]} 20. Qg3 {[%clk 0:03:38.1]} 20... Ng6 {[%clk
0:03:54.8]} 21. Be3 {[%clk 0:03:28.5]} 21... Nce7 {[%clk 0:03:42]} 22. Bf2
{[%clk 0:03:15]} 22... Nf5 {[%clk 0:03:40.8]} 23. Qd3 {[%clk 0:03:14.6]} 23...
Rac8 {[%clk 0:03:33.4]} 24. Rc1 {[%clk 0:03:00.5]} 24... Nh6 {[%clk 0:03:06.9]}
25. h3 {[%clk 0:02:53.3]} 25... Nf5 {[%clk 0:03:05]} 26. g4 {[%clk 0:02:50.3]}
26... Nfh4 {[%clk 0:03:03]} 27. Bxh4 {[%clk 0:02:49.3]} 27... Nxh4 {[%clk
0:03:01.8]} 28. Rxc8 {[%clk 0:02:49.2]} 28... Qxc8 {[%clk 0:02:58.4]} 29. Rxf8+
{[%clk 0:02:36.8]} 29... Qxf8 {[%clk 0:02:58.3]} 30. Qe3 {[%clk 0:02:33.9]}
30... Ng6 {[%clk 0:02:45.3]} 31. Kg2 {[%clk 0:02:29.9]} 31... Qb4 {[%clk
0:02:40.6]} 32. Qc3 {[%clk 0:02:27]} 32... Qf8 {[%clk 0:02:23.9]} 33. Kg3 {[%clk
0:02:18.4]} 33... Ne7 {[%clk 0:02:14.9]} 34. Nf4 {[%clk 0:02:03.5]} 34... Qf7
{[%clk 0:02:05.5]} 35. Qc5 {[%clk 0:01:50.6]} 35... Ng6 {[%clk 0:01:49.6]} 36.
Qc8+ {[%clk 0:01:45.7]} 36... Nf8 {[%clk 0:01:47.4]} 37. h4 {[%clk 0:01:44.2]}
37... h6 {[%clk 0:01:40.2]} 38. h5 {[%clk 0:01:42.6]} 38... Kh7 {[%clk
0:01:36.6]} 39. Qb8 {[%clk 0:01:37.5]} 39... a6 {[%clk 0:01:28.2]} 40. Qd8
{[%clk 0:01:36.5]} 40... g5 {[%clk 0:01:15]} 41. hxg6+ {[%clk 0:01:28.9]} 41...
Nxg6 {[%clk 0:01:13.4]} 42. Nxg6 {[%clk 0:00:47.9]} 42... Kxg6 {[%clk
0:01:03.9]} 43. Qc8 {[%clk 0:00:47]} 43... Kg7 {[%clk 0:01:01.4]} 44. b4 {[%clk
0:00:42.7]} 44... Qe7 {[%clk 0:00:53.6]} 45. a3 {[%clk 0:00:40.6]} 45... Qf7
{[%clk 0:00:45.2]} 46. Qd8 {[%clk 0:00:34.5]} 46... Kh7 {[%clk 0:00:39.6]} 47.
a4 {[%clk 0:00:29.4]} 47... h5 {[%clk 0:00:36.8]} 48. gxh5 {[%clk 0:00:24.9]}
48... Qxh5 {[%clk 0:00:33.1]} 49. Qe7+ {[%clk 0:00:23.9]} 49... Kh8 {[%clk
0:00:30.6]} 50. Qxe6 {[%clk 0:00:21.1]} 50... Qg5+ {[%clk 0:00:29.7]} 51. Kf3
{[%clk 0:00:19.5]} 51... Qh5+ {[%clk 0:00:27.8]} 52. Qg4 {[%clk 0:00:18.8]}
52... Qh1+ {[%clk 0:00:26.9]} 53. Kf4 {[%clk 0:00:18.2]} 53... Qf1+ {[%clk
0:00:25.7]} 54. Kg5 {[%clk 0:00:17.6]} 54... Qc1+ {[%clk 0:00:23.9]} 55. Kf6
{[%clk 0:00:17]} 55... Qc6+ {[%clk 0:00:21.8]} 56. e6 {[%clk 0:00:15.8]} 56...
Qe8 {[%clk 0:00:19.7]} 57. Qg7# {[%clk 0:00:14.5]} 1-0

[Event "Live Chess"]
[Site "Chess.com"]
[Date "2023.05.20"]
[Round "-"]
[White "ProfPoisson"]
[Black "Supertromp"]
[Result "1-0"]
[WhiteElo "1120"]
[BlackElo "2185"]
[TimeControl "300"]
[EndTime "13:32:26 PDT"]
[Termination "ProfPoisson won by checkmate"]

1. e4 {[%clk 0:04:55.3]} 1... c5 {[%clk 0:04:58.2]} 2. Nf3 {[%clk 0:04:52]} 2...
d6 {[%clk 0:04:56.3]} 3. Bb5+ {[%clk 0:04:46.7]} 3... Bd7 {[%clk 0:04:53.7]} 4.
Bxd7+ {[%clk 0:04:44.5]} 4... Qxd7 {[%clk 0:04:53.6]} 5. c4 {[%clk 0:04:42.4]}
5... Nc6 {[%clk 0:04:42.2]} 6. Nc3 {[%clk 0:04:37.2]} 6... g6 {[%clk 0:04:38]}
7. O-O {[%clk 0:04:35.7]} 7... Bg7 {[%clk 0:04:36.1]} 8. Nd5 {[%clk 0:04:27.6]}
8... Nf6 {[%clk 0:04:31.4]} 9. Nxf6+ {[%clk 0:04:25.3]} 9... Bxf6 {[%clk
0:04:27]} 10. Rb1 {[%clk 0:04:22.7]} 10... O-O {[%clk 0:04:24.7]} 11. b3 {[%clk
0:04:19.8]} 11... e5 {[%clk 0:03:29.5]} 12. Bb2 {[%clk 0:04:16.3]} 12... h5
{[%clk 0:03:21.6]} 13. Re1 {[%clk 0:03:56.4]} 13... Nd8 {[%clk 0:03:10.6]} 14.
d4 {[%clk 0:03:53.2]} 14... exd4 {[%clk 0:03:03.2]} 15. e5 {[%clk 0:03:49.4]}
15... dxe5 {[%clk 0:03:01.6]} 16. Nxe5 {[%clk 0:03:46.4]} 16... Bxe5 {[%clk
0:03:00.7]} 17. Rxe5 {[%clk 0:03:43.8]} 17... Nc6 {[%clk 0:02:45.3]} 18. Rxc5
{[%clk 0:03:36.3]} 18... Rad8 {[%clk 0:02:37.4]} 19. Rd5 {[%clk 0:03:32.7]}
19... Qe6 {[%clk 0:02:36.5]} 20. Rxd8 {[%clk 0:03:21.9]} 20... Rxd8 {[%clk
0:02:36.4]} 21. Qd2 {[%clk 0:03:08.4]} 21... d3 {[%clk 0:02:28.1]} 22. Re1
{[%clk 0:03:03.4]} 22... Qg4 {[%clk 0:02:15.3]} 23. Qh6 {[%clk 0:02:57.6]} 23...
Nd4 {[%clk 0:02:10.3]} 24. h3 {[%clk 0:02:37.1]} 24... Qf5 {[%clk 0:01:35.2]}
25. Bxd4 {[%clk 0:02:24.7]} 25... Rxd4 {[%clk 0:01:33.7]} 26. Re8# {[%clk
0:02:21.2]} 1-0

[Event "Live Chess"]
[Site "Chess.com"]
[Date "2023.05.20"]
[Round "-"]
[White "chessfiction"]
[Black "ViktorTheCoolBoy"]
[Result "0-1"]
[WhiteElo "2419"]
[BlackElo "2503"]
[TimeControl "300"]
[EndTime "13:32:29 PDT"]
[Termination "ViktorTheCoolBoy won by resignation"]

1. e4 {[%clk 0:04:58.2]} 1... d6 {[%clk 0:04:59.2]} 2. d4 {[%clk 0:04:57.4]}
2... Nf6 {[%clk 0:04:57.3]} 3. Nc3 {[%clk 0:04:57]} 3... Nbd7 {[%clk 0:04:54.5]}
4. f4 {[%clk 0:04:56.3]} 4... e5 {[%clk 0:04:52.7]} 5. Nf3 {[%clk 0:04:54.9]}
5... exd4 {[%clk 0:04:50.4]} 6. Nxd4 {[%clk 0:04:53.6]} 6... Be7 {[%clk
0:04:49.8]} 7. Bd3 {[%clk 0:04:48]} 7... O-O {[%clk 0:04:49.2]} 8. O-O {[%clk
0:04:43.8]} 8... Re8 {[%clk 0:04:48.1]} 9. Kh1 {[%clk 0:04:42]} 9... Bf8 {[%clk
0:04:47]} 10. Be3 {[%clk 0:04:39.8]} 10... Nc5 {[%clk 0:04:44.9]} 11. Qf3 {[%clk
0:04:38.3]} 11... Bg4 {[%clk 0:04:38.9]} 12. Qg3 {[%clk 0:04:36.8]} 12... Bd7
{[%clk 0:04:37.4]} 13. Rae1 {[%clk 0:04:34.2]} 13... Ncxe4 {[%clk 0:04:34.1]}
14. Nxe4 {[%clk 0:04:31.1]} 14... Nxe4 {[%clk 0:04:34]} 15. Qf3 {[%clk
0:04:25.3]} 15... d5 {[%clk 0:04:28.4]} 16. c4 {[%clk 0:04:23.7]} 16... c6
{[%clk 0:04:27.2]} 17. f5 {[%clk 0:04:22.9]} 17... Bd6 {[%clk 0:04:21.3]} 18. f6
{[%clk 0:04:19.6]} 18... Nxf6 {[%clk 0:04:17.5]} 19. Bg5 {[%clk 0:04:17.5]}
19... Be5 {[%clk 0:04:05.1]} 20. Nf5 {[%clk 0:04:12.6]} 20... dxc4 {[%clk
0:03:27.6]} 21. Bxc4 {[%clk 0:04:04.6]} 21... Be6 {[%clk 0:03:18.9]} 22. Bd3
{[%clk 0:03:57.9]} 22... Bd5 {[%clk 0:03:16.7]} 23. Qh3 {[%clk 0:03:56.3]} 23...
h6 {[%clk 0:03:14.3]} 24. Bxh6 {[%clk 0:03:54.3]} 24... gxh6 {[%clk 0:03:08.2]}
25. Qxh6 {[%clk 0:03:53.4]} 25... Ng4 {[%clk 0:03:06.9]} 26. Ne7+ {[%clk
0:03:35.5]} 26... Qxe7 {[%clk 0:03:02.9]} 27. Qh7+ {[%clk 0:03:22.9]} 27... Kf8
{[%clk 0:03:01.8]} 28. Rxe5 {[%clk 0:03:20.2]} 28... Qxe5 {[%clk 0:02:59.3]} 0-1

[Event "Live Chess"]
[Site "Chess.com"]
[Date "2023.05.20"]
[Round "-"]
[White "Long1968"]
[Black "Greenbecker"]
[Result "0-1"]
[WhiteElo "1080"]
[BlackElo "1631"]
[TimeControl "300"]
[EndTime "13:32:38 PDT"]
[Termination "Greenbecker won on time"]

1. e4 {[%clk 0:04:54.3]} 1... e6 {[%clk 0:04:59.1]} 2. d4 {[%clk 0:04:52.4]}
2... d5 {[%clk 0:04:58.6]} 3. Nc3 {[%clk 0:04:49.3]} 3... dxe4 {[%clk
0:04:57.1]} 4. Nxe4 {[%clk 0:04:46.9]} 4... Bd7 {[%clk 0:04:56.4]} 5. Nf3 {[%clk
0:04:41.9]} 5... Bc6 {[%clk 0:04:55.5]} 6. Qd3 {[%clk 0:04:31.7]} 6... Nd7
{[%clk 0:04:50.8]} 7. Be2 {[%clk 0:04:19.1]} 7... Ngf6 {[%clk 0:04:49.7]} 8.
Nxf6+ {[%clk 0:04:11.4]} 8... Nxf6 {[%clk 0:04:48.7]} 9. c3 {[%clk 0:04:07.4]}
9... Be7 {[%clk 0:04:43.2]} 10. O-O {[%clk 0:04:01.4]} 10... O-O {[%clk
0:04:41.6]} 11. Bg5 {[%clk 0:03:54.8]} 11... Nd5 {[%clk 0:04:39.2]} 12. Bxe7
{[%clk 0:03:36.2]} 12... Qxe7 {[%clk 0:04:36.7]} 13. Qd2 {[%clk 0:03:25.1]}
13... Rad8 {[%clk 0:04:32.2]} 14. Rad1 {[%clk 0:03:17.5]} 14... Nf6 {[%clk
0:04:25.8]} 15. Ne5 {[%clk 0:03:08.4]} 15... Be8 {[%clk 0:04:22.7]} 16. Bd3
{[%clk 0:02:57.5]} 16... Nd7 {[%clk 0:04:20.2]} 17. f4 {[%clk 0:02:50.4]} 17...
c5 {[%clk 0:04:16.9]} 18. Bb1 {[%clk 0:02:41]} 18... cxd4 {[%clk 0:04:11.7]} 19.
Qxd4 {[%clk 0:02:35.5]} 19... f6 {[%clk 0:04:05.2]} 20. Nc4 {[%clk 0:02:17.6]}
20... Bh5 {[%clk 0:03:57.8]} 21. Rd3 {[%clk 0:01:54]} 21... Nb6 {[%clk
0:03:46.2]} 22. Qe3 {[%clk 0:01:47.2]} 22... Nxc4 {[%clk 0:03:42.4]} 23. Qh3
{[%clk 0:01:16.8]} 23... Bg6 {[%clk 0:03:32.9]} 24. Rxd8 {[%clk 0:01:04]} 24...
Rxd8 {[%clk 0:03:31.2]} 25. f5 {[%clk 0:00:45.5]} 25... exf5 {[%clk 0:03:21.3]}
26. Bxf5 {[%clk 0:00:39.7]} 26... Qe3+ {[%clk 0:03:17.1]} 27. Kh1 {[%clk
0:00:17.3]} 27... Qxh3 {[%clk 0:03:15.2]} 28. gxh3 {[%clk 0:00:10.4]} 28... Bxf5
{[%clk 0:03:13.4]} 29. Rxf5 {[%clk 0:00:07.4]} 29... Rd1+ {[%clk 0:03:12.4]} 30.
Kg2 {[%clk 0:00:04.9]} 30... Rd2+ {[%clk 0:03:11.8]} 31. Kg3 {[%clk 0:00:03]}
31... Rxb2 {[%clk 0:03:10.7]} 0-1

[Event "Live Chess"]
[Site "Chess.com"]
[Date "2023.05.20"]
[Round "-"]
[White "GMHarry-youtube"]
[Black "Ferrarifan27"]
[Result "0-1"]
[WhiteElo "2074"]
[BlackElo "2061"]
[TimeControl "300"]
[EndTime "13:32:53 PDT"]
[Termination "Ferrarifan27 won by checkmate"]

1. e4 {[%clk 0:04:58.1]} 1... e5 {[%clk 0:04:58.9]} 2. Nf3 {[%clk 0:04:57.1]}
2... Nc6 {[%clk 0:04:58.2]} 3. Bc4 {[%clk 0:04:56.1]} 3... Bc5 {[%clk
0:04:55.3]} 4. c3 {[%clk 0:04:54.8]} 4... Nf6 {[%clk 0:04:54.1]} 5. d3 {[%clk
0:04:54.2]} 5... a6 {[%clk 0:04:50.8]} 6. O-O {[%clk 0:04:49.8]} 6... d6 {[%clk
0:04:49.7]} 7. a4 {[%clk 0:04:48.6]} 7... Bg4 {[%clk 0:04:47.9]} 8. h3 {[%clk
0:04:47.2]} 8... Bh5 {[%clk 0:04:46.5]} 9. g4 {[%clk 0:04:43]} 9... Bg6 {[%clk
0:04:45.2]} 10. Qb3 {[%clk 0:04:41.8]} 10... Na5 {[%clk 0:04:39.9]} 11. Qa2
{[%clk 0:04:38.9]} 11... Nxc4 {[%clk 0:04:38.2]} 12. Qxc4 {[%clk 0:04:38.8]}
12... O-O {[%clk 0:04:35.2]} 13. b4 {[%clk 0:04:37.8]} 13... Ba7 {[%clk
0:04:33.4]} 14. Be3 {[%clk 0:04:36]} 14... Bxe3 {[%clk 0:04:29.8]} 15. fxe3
{[%clk 0:04:35.9]} 15... Qd7 {[%clk 0:04:26.3]} 16. Nbd2 {[%clk 0:04:33]} 16...
Rfe8 {[%clk 0:04:08.2]} 17. Nh4 {[%clk 0:04:27]} 17... d5 {[%clk 0:04:04.9]} 18.
exd5 {[%clk 0:04:25.4]} 18... Nxd5 {[%clk 0:04:03.8]} 19. Rae1 {[%clk
0:04:09.1]} 19... Nb6 {[%clk 0:04:00.4]} 20. Qb3 {[%clk 0:04:04.6]} 20... Bxd3
{[%clk 0:03:58.3]} 21. Rf3 {[%clk 0:04:00.7]} 21... Nxa4 {[%clk 0:03:31.5]} 22.
e4 {[%clk 0:03:50.8]} 22... Bb5 {[%clk 0:03:24]} 23. Rf2 {[%clk 0:03:37.4]}
23... Rf8 {[%clk 0:03:10]} 24. Ndf3 {[%clk 0:03:32.6]} 24... Rad8 {[%clk
0:03:02.7]} 25. Nxe5 {[%clk 0:03:30.4]} 25... Qe7 {[%clk 0:02:57.6]} 26. Nhf3
{[%clk 0:03:08.8]} 26... Nb6 {[%clk 0:02:50.6]} 27. c4 {[%clk 0:02:54.9]} 27...
Ba4 {[%clk 0:02:49.3]} 28. Qa2 {[%clk 0:02:48.6]} 28... Qxb4 {[%clk 0:02:46.6]}
29. Ng5 {[%clk 0:02:19.8]} 29... Qxe1+ {[%clk 0:02:40.4]} 30. Kg2 {[%clk
0:02:14.8]} 30... Bc6 {[%clk 0:02:24.2]} 31. Nexf7 {[%clk 0:01:53.8]} 31...
Bxe4+ {[%clk 0:02:21.3]} 32. Kh2 {[%clk 0:01:30.5]} 32... Qh1+ {[%clk
0:02:14.1]} 33. Kg3 {[%clk 0:01:29.1]} 33... Rd3+ {[%clk 0:02:10]} 34. Kh4
{[%clk 0:01:23.6]} 34... h6 {[%clk 0:01:56.3]} 35. c5 {[%clk 0:00:50.9]} 35...
hxg5+ {[%clk 0:01:53.9]} 36. Nxg5+ {[%clk 0:00:31.2]} 36... Bd5 {[%clk
0:01:52.3]} 37. Qc2 {[%clk 0:00:24.9]} 37... Qe1 {[%clk 0:01:39.3]} 38. Qxd3
{[%clk 0:00:19.4]} 38... Qxf2+ {[%clk 0:01:37.4]} 39. Kh5 {[%clk 0:00:18.2]}
39... Bf7+ {[%clk 0:01:35.6]} 40. Nxf7 {[%clk 0:00:16.3]} 40... Qxf7+ {[%clk
0:01:34.4]} 41. Kh4 {[%clk 0:00:15.8]} 41... Qf2+ {[%clk 0:01:33.4]} 42. Kh5
{[%clk 0:00:15.1]} 42... Rf3 {[%clk 0:01:15.6]} 43. Qd8+ {[%clk 0:00:13.5]}
43... Kh7 {[%clk 0:01:14.4]} 44. h4 {[%clk 0:00:07.3]} 44... g6+ {[%clk
0:01:11.2]} 45. Kg5 {[%clk 0:00:05.2]} 45... Qe3# {[%clk 0:01:09.7]} 0-1